bitfinex-derivatives/quotes_SOLF0:USTF0_20241024
["timestamp","ask_amount","ask_price","bid_price","bid_amount"]
[1729755051964,2.8806,173.74,173.71,9.96132672]
[1729755052170,2.8811,173.71,173.68,4.03324]
[1729755052366,4.12,173.7,173.69,1.44093146]
[1729755052672,4.12,173.7,173.67,5.09125631]
[1729755052969,4.12,173.7,173.68,1.44102416]
[1729755053179,4.12,173.7,173.66,7.08042672]
[1729755053669,4.12,173.7,173.68,2.8814]
[1729755055675,4.12,173.7,173.68,9.96182672]
[1729755056378,4.12,173.7,173.68,7.08042672]
[1729755056571,4.12,173.7,173.69,2.8814]
[1729755056773,2.8807,173.74,173.69,7.08042672]
[1729755056968,4.12,173.73,173.71,7.08042672]
[1729755057168,1.2395,173.82,173.72,7.08042672]
[1729755057372,1.2395,173.82,173.74,7.08042672]
[1729755057373,4.12,173.81,173.74,7.08042672]
[1729755057573,7.08042672,173.8,173.74,7.08042672]
[1729755058078,4.12,173.79,173.76,7.08042672]
[1729755058279,4.12,173.79,173.73,13.58774622]
[1729755058481,4.12,173.79,173.74,1.44055001]
[1729755058781,4.12,173.79,173.73,13.58774622]
[1729755058982,4.12,173.79,173.77,2.8799]
[1729755061076,188.18248681,173.87,173.76,1.09987]
[1729755061279,6.9991,173.83,173.76,12.16331622]
[1729755062371,4.12,173.83,173.76,12.16331622]
[1729755062570,4.12,173.82,173.78,11.06344622]
[1729755063091,4.12,173.82,173.78,12.16331622]
[1729755063578,4.12,173.82,173.8,2.8794]
[1729755064482,62.18,173.88,173.79,1.09987]
[1729755064780,4.12,173.87,173.8,15.05977131]
[1729755064984,4.12,173.87,173.8,13.61964622]
[1729755065172,4.12,173.87,173.8,14.71951622]
[1729755065373,4.12,173.86,173.84,2.8788]
[1729755068087,11.06344622,173.92,173.82,1.0999]
[1729755068283,2.8779,173.9,173.86,2.8784]
[1729755069074,4.12,173.91,173.86,2.8784]
[1729755069278,2.8781,173.89,173.86,2.8784]
[1729755070486,4.12,173.89,173.84,1.0999]
[1729755071088,4.12,173.89,173.87,2.8783]
[1729755072685,2.8774,173.94,173.9,2.8779]
[1729755072887,11.06344622,173.95,173.86,1.0999]
[1729755072888,4.12,173.93,173.86,1.0999]
[1729755073789,2.8776,173.92,173.88,2.8781]
[1729755074789,4.12,173.91,173.88,2.8781]
[1729755076091,2.8779,173.9,173.87,2.8784]
[1729755076587,4.12,173.91,173.86,1.0999]
[1729755076790,6.9977,173.91,173.86,1.0999]
[1729755076983,4.12,173.91,173.86,1.0999]
[1729755077697,4.12,173.91,173.88,2.8781]
[1729755077991,4.12,173.91,173.86,1.0999]
[1729755078491,2.8776,173.92,173.87,2.8783]
[1729755078693,4.12,173.91,173.86,1.0999]
[1729755080192,4.12,173.94,173.87,2.5426]
[1729755080387,4.12,173.95,173.92,7.07696126]
[1729755080723,4.12,173.95,173.93,2.8773]
[1729755081794,4.12,173.95,173.92,7.07696126]
[1729755081795,4.12,173.95,173.94,2.8772]
[1729755082997,4.12,173.95,173.93,2.8774]
[1729755083186,4.12,173.95,173.87,2.5426]
[1729755083187,4.12,173.95,173.87,13.59835321]
[1729755083385,4.12,173.95,173.87,2.5426]
[1729755083588,4.12,173.95,173.9,2.8778]
[1729755084091,4.12,173.95,173.9,1.10006]
[1729755084323,6.9971,173.95,173.92,2.8775]
[1729755085097,6.9971,173.95,173.91,1.10006]
[1729755085398,6.9971,173.95,173.91,3.97776]
[1729755085604,4.12,173.95,173.91,1.10006]
[1729755086190,6.9971,173.95,173.91,1.10006]
[1729755086397,4.12,173.95,173.92,2.8774]
[1729755088290,4.12,173.96,173.93,2.8773]
[1729755090797,4.12,173.96,173.94,2.8771]
[1729755091796,2.8767,173.98,173.94,2.8771]
[1729755092303,4.12,173.97,173.94,2.8771]
[1729755093802,6.9967,173.97,173.94,2.8771]
[1729755096199,6.9967,173.97,173.9,1.2502]
[1729755096200,2.8769,173.96,173.93,2.8773]
[1729755096402,4.12,173.97,173.9,1.2502]
[1729755096604,4.12,173.97,173.89,1.15038]
[1729755096805,2.8773,173.94,173.9,2.8778]
[1729755099012,2.8773,173.94,173.91,2.8777]
[1729755100412,2.8772,173.94,173.9,2.8778]
[1729755102209,2.8772,173.94,173.91,2.8777]
[1729755102513,2.8772,173.94,173.91,9.95419531]
[1729755102906,6.9971,173.95,173.92,2.8775]
[1729755103107,6.9971,173.95,173.93,7.07649531]
[1729755106417,6.9971,173.95,173.93,9.95389531]
[1729755106818,4.12,173.95,173.92,1.10009]
[1729755107010,4.12,173.95,173.82,2.8791]
[1729755107011,7.07649531,173.88,173.82,2.8791]
[1729755107318,4.12,173.87,173.82,2.8791]
[1729755107917,4.12,173.87,173.82,8.17655531]
[1729755108119,4.12,173.87,173.84,9.95529531]
[1729755108308,4.12,173.87,173.85,7.07649531]
[1729755109516,4.12,173.87,173.85,8.17645531]
[1729755109721,4.12,173.87,173.85,1.09996]
[1729755111115,6.9984,173.87,173.85,1.09996]
[1729755111418,6.9984,173.87,173.84,3.97876]
[1729755111616,2.8786,173.86,173.84,1.09996]
[1729755113218,2.8786,173.86,173.82,11.05568531]
[1729755113417,2.8786,173.86,173.82,11.10650531]
[1729755113921,2.8786,173.86,173.82,11.05562531]
[1729755114825,2.879,173.84,173.82,1.10003]
[1729755115021,7.07649531,173.86,173.82,1.10003]
[1729755115220,7.07649531,173.86,173.8,9.95599531]
[1729755115413,2.879,173.84,173.8,9.95599531]
[1729755115624,2.879,173.84,173.8,11.05602531]
[1729755116325,2.879,173.84,173.82,7.07649531]
[1729755116716,2.879,173.84,173.82,8.17652531]
[1729755117318,4.12,173.88,173.83,9.95559531]
[1729755117531,4.12,173.88,173.84,7.07649531]
[1729755117718,4.12,173.88,173.84,8.17652531]
[1729755118227,2.8787,173.86,173.84,8.17652531]
[1729755119020,7.07649531,173.87,173.83,1.10003]
[1729755119228,2.8789,173.84,173.83,1.10003]
[1729755119529,7.07649531,173.86,173.82,1.10003]
[1729755119724,2.879,173.84,173.82,1.10003]
[1729755120429,2.879,173.84,173.82,1.15104]
[1729755120733,2.879,173.84,173.82,1.10009]
[1729755121822,2.879,173.84,173.78,2.4965]
[1729755121823,7.07649531,173.83,173.78,1.2644]
[1729755122119,7.07649531,173.83,173.78,9.49220531]
[1729755122527,7.07649531,173.83,173.78,9.44092531]
[1729755122724,7.07649531,173.83,173.78,12.32072531]
[1729755122725,2.8794,173.81,173.78,12.32072531]
[1729755123031,2.8794,173.81,173.78,11.22069531]
[1729755123240,2.8794,173.81,173.78,12.32072531]
[1729755123444,2.8799,173.78,173.75,2.8803]
[1729755124037,2.8799,173.78,173.75,4.03167]
[1729755124237,2.8798,173.79,173.75,4.03167]
[1729755124438,2.8798,173.79,173.76,2.8802]
[1729755124751,4.12,173.8,173.77,7.07649531]
[1729755124945,4.12,173.8,173.79,7.07649531]
[1729755125348,4.12,173.82,173.79,7.07649531]
[1729755125645,4.12,173.82,173.79,8.22786531]
[1729755126145,4.12,173.82,173.8,7.07649531]
[1729755126539,4.12,173.82,173.8,9.95589531]
[1729755126846,4.12,173.82,173.8,11.10726531]
[1729755127550,63.3182,173.96,173.8,8.22786531]
[1729755127852,2.8785,173.87,173.84,7.07649531]
[1729755128145,4.12,173.87,173.84,7.07649531]
[1729755128339,4.12,173.87,173.79,2.66568358]
[1729755128340,7.07649531,173.92,173.86,7.07649531]
[1729755128544,4.12,173.91,173.88,7.07649531]
[1729755128748,4.12,173.9,173.88,7.07649531]
[1729755130345,4.12,173.9,173.87,4.02967]
[1729755131542,6.9979,173.9,173.87,4.02967]
[1729755131745,11.04941357,173.88,173.76,2.8802]
[1729755132049,11.04941357,173.83,173.76,4.03117]
[1729755132348,4.18,173.82,173.76,4.03117]
[1729755133351,2.8797,173.8,173.76,4.03117]
[1729755134548,2.8795,173.81,173.77,2.88]
[1729755134745,4.18,173.82,173.76,1.15097]
[1729755135047,4.18,173.82,173.77,2.421]
[1729755135241,7.0592,173.82,173.77,2.421]
[1729755135545,7.0592,173.82,173.77,3.57197]
[1729755136343,7.0592,173.82,173.78,2.8798]
[1729755136754,7.0592,173.82,173.78,4.03077]
[1729755139250,7.0592,173.82,173.78,1.15097]
[1729755139457,4.18,173.82,173.78,1.15097]
[1729755140147,2.8791,173.83,173.79,2.8796]
[1729755140353,4.18,173.82,173.79,2.8796]
[1729755140557,4.18,173.82,173.78,1.15097]
[1729755140755,4.18,173.82,173.8,2.8795]
[1729755141445,4.18,173.82,173.8,1.15097]
[1729755145861,4.18,173.82,173.8,4.03047]
[1729755156056,4.18,173.82,173.8,1.15097]
[1729755156362,7.07906187,173.81,173.75,1.44015092]
[1729755156569,7.07906187,173.79,173.74,1.15097]
[1729755156859,4.18,173.78,173.75,2.8803]
[1729755157062,4.18,173.78,173.74,2.59112092]
[1729755157256,4.18,173.78,173.74,1.10022]
[1729755157464,7.06,173.78,173.74,3.98072]
[1729755157861,7.06,173.78,173.74,5.42100827]
[1729755158055,7.06,173.78,173.74,3.98072]
[1729755158258,9.95916187,173.77,173.74,5.42100827]
[1729755158460,9.95916187,173.77,173.74,3.98072]
[1729755160070,7.07906187,173.77,173.74,3.98072]
[1729755160872,14.13896187,173.78,173.74,1.10022]
[1729755161067,11.25906187,173.78,173.75,2.8804]
[1729755161470,11.25906187,173.78,173.75,3.98059]
[1729755162268,14.13896187,173.78,173.75,3.98059]
[1729755164680,2.8801,173.77,173.75,1.10019]
[1729755164974,11.25906187,173.78,173.75,1.10019]
[1729755165582,2.8799,173.78,173.76,7.07906187]
[1729755165775,4.18,173.79,173.76,7.07906187]
[1729755165975,4.18,173.79,173.76,8.17925187]
[1729755166178,4.18,173.79,173.77,2.8799]
[1729755166670,4.18,173.79,173.77,3.98009]
[1729755168579,4.18,173.79,173.77,1.10019]
[1729755168783,14.13886187,173.79,173.77,1.10019]
[1729755169478,9.95886187,173.79,173.77,1.10019]
[1729755169687,4.18,173.78,173.77,1.10019]
[1729755171283,4.18,173.78,173.77,3.98029]
[1729755172888,4.18,173.78,173.77,5.42055697]
[1729755174377,4.18,173.78,173.77,3.98029]
[1729755174679,4.18,173.78,173.77,5.42050525]
[1729755178082,4.18,173.78,173.77,3.98029]
[1729755178279,4.18,173.78,173.77,5.42050525]
[1729755178587,4.18,173.78,173.77,3.98029]
[1729755178884,4.18,173.78,173.77,5.42050525]
[1729755180180,4.18,173.78,173.77,10.48242216]
[1729755181186,4.18,173.78,173.77,10.48212411]
[1729755181391,9.95856187,173.81,173.77,10.48212411]
[1729755181587,4.18,173.8,173.78,4.32010034]
[1729755181791,4.18,173.8,173.79,1.44020034]
[1729755181989,2.879,173.84,173.79,1.44020034]
[1729755182193,62.18,173.88,173.81,7.07906187]
[1729755182396,4.18,173.87,173.83,7.07906187]
[1729755182689,4.18,173.87,173.83,11.05825187]
[1729755183096,11.25906187,173.87,173.83,3.97919]
[1729755183785,2.8787,173.86,173.83,1.10019]
[1729755183994,7.07906187,173.84,173.81,1.10019]
[1729755184191,7.07906187,173.84,173.82,1.43989294]
[1729755184396,4.18,173.83,173.81,1.10019]
[1729755184586,4.18,173.83,173.82,1.43990018]
[1729755187504,4.18,173.83,173.81,3.97949]
[1729755187698,4.18,173.83,173.82,1.43988896]
[1729755189102,4.18,173.86,173.82,1.43988896]
[1729755189298,4.18,173.86,173.83,1.43988896]
[1729755189492,7.07906187,173.91,173.84,1.43988896]
[1729755189696,7.058,173.9,173.85,1.43988896]
[1729755189897,7.058,173.9,173.84,7.07906187]
[1729755190106,7.058,173.9,173.85,1.43970228]
[1729755190298,7.058,173.9,173.86,1.43970228]
[1729755190500,7.058,173.9,173.84,8.17925187]
[1729755190705,4.18,173.9,173.85,1.4396717]
[1729755191005,2.8781,173.89,173.86,1.4396717]
[1729755191202,2.8781,173.89,173.85,3.97879]
[1729755194506,2.8781,173.89,173.86,2.8785]
[1729755195110,9.95716187,173.89,173.86,2.8785]
[1729755199906,4.18,173.9,173.85,1.10018]
[1729755200112,4.18,173.9,173.88,2.8782]
[1729755202211,7.07906187,173.89,173.87,2.8782]
[1729755210618,7.0579,173.9,173.81,5.04158017]
[1729755210619,7.07906187,173.88,173.84,2.8789]
[1729755210823,7.07906187,173.86,173.82,1.09984]
[1729755211015,7.07906187,173.84,173.79,5.04268982]
[1729755211214,7.07906187,173.84,173.78,9.48146187]
[1729755211215,11.25906187,173.84,173.81,2.8793]
[1729755211516,11.25906187,173.84,173.82,1.43976365]
[1729755211715,11.25906187,173.84,173.82,2.8791]
[1729755212527,11.25906187,173.84,173.82,3.97919]
[1729755213217,7.07906187,173.83,173.8,1.10009]
[1729755213433,7.07906187,173.81,173.79,2.8797]
[1729755213617,7.07906187,173.81,173.79,3.97979]
[1729755214414,7.07906187,173.81,173.8,2.8796]
[1729755216213,7.07906187,173.83,173.8,2.8796]
[1729755216421,9.95826187,173.83,173.79,3.97982]
[1729755216814,9.95826187,173.83,173.8,2.8795]
[1729755222225,2.86432115,174.01,173.82,7.07906187]
[1729755222419,7.07906187,173.96,173.89,7.07906187]
[1729755222618,4.12,173.95,173.89,7.07906187]
[1729755222818,6.9972,173.95,173.91,2.8777]
[1729755223325,9.95666187,173.92,173.88,2.8781]
[1729755223538,4.12,173.91,173.88,2.8781]
[1729755227728,4.12,173.91,173.88,2.8782]
[1729755228229,7.07906187,173.92,173.87,8.17928187]
[1729755228230,2.8769,173.96,173.92,2.8775]
[1729755228424,4.12,173.95,173.92,2.8775]
[1729755228835,4.12,173.95,173.93,2.8774]
[1729755229430,4.12,173.95,173.91,7.07906187]
[1729755229431,4.12,173.95,173.92,2.8775]
[1729755230526,4.12,173.95,173.93,2.8773]
[1729755233936,4.12,173.95,173.92,2.8775]
[1729755234137,4.12,173.95,173.91,7.07906187]
[1729755234642,4.12,173.95,173.94,2.8772]
[1729755238538,14.07616187,173.95,173.92,2.8775]
[1729755239643,11.19906187,173.95,173.92,2.8775]
[1729755240743,14.07616187,173.95,173.92,2.8775]
[1729755241436,11.19906187,173.95,173.89,1.1]
[1729755241637,7.07906187,173.91,173.87,1.43926572]
[1729755241837,11.19906187,173.91,173.86,1.15058]
[1729755242034,11.19906187,173.91,173.88,2.8781]
[1729755242546,11.19906187,173.91,173.89,2.878]
[1729755248842,4.12,173.91,173.89,2.878]
[1729755249150,4.12,173.91,173.87,8.17902187]
[1729755249457,1.0724,174.0,173.9,7.07906187]
[1729755249644,11.19906187,173.99,173.94,7.07906187]
[1729755249841,2.8767,173.98,173.95,2.8769]
[1729755250148,7.07906187,173.98,173.92,8.17902187]
[1729755250346,7.07906187,173.98,173.92,7.07906187]
[1729755250548,4.12,173.99,173.92,8.17902187]
[1729755250742,7.07906187,173.98,173.92,8.17902187]
[1729755251151,9.95576187,173.98,173.94,2.8771]
[1729755252449,2.8768,173.97,173.94,2.8771]
[1729755253350,9.95586187,173.97,173.94,2.8771]
[1729755256549,7.07906187,173.97,173.92,1.10009]
[1729755256753,2.8769,173.96,173.93,2.8774]
[1729755256954,11.21906187,173.95,173.92,1.15038]
[1729755258246,14.09626187,173.95,173.92,4.02788]
[1729755258845,11.21906187,173.95,173.91,1.15038]
[1729755259055,9.95656187,173.93,173.9,2.8779]
[1729755259451,9.95656187,173.93,173.9,4.02828]
[1729755259756,7.07906187,173.93,173.9,1.15038]
[1729755260456,7.07906187,173.92,173.88,1.15038]
[1729755260647,7.07906187,173.92,173.86,8.24626187]
[1729755260648,7.07906187,173.9,173.86,1.1672]
[1729755260843,7.07906187,173.9,173.86,2.31758]
[1729755261048,9.95696187,173.9,173.86,2.26723]
[1729755261248,9.95696187,173.9,173.86,2.31784]
[1729755261561,9.95696187,173.9,173.86,4.0456]
[1729755261853,7.07906187,173.9,173.86,2.26723]
[1729755262045,7.07906187,173.9,173.87,2.8784]
[1729755262354,7.07906187,173.9,173.87,3.97843]
[1729755262750,7.07906187,173.9,173.87,2.8784]
[1729755263150,7.07906187,173.9,173.87,3.97843]
[1729755267057,7.07906187,173.9,173.87,2.8784]
[1729755267555,7.07906187,173.9,173.87,3.97843]
[1729755270557,2.4066,173.99,173.88,7.07906187]
[1729755270762,7.07906187,173.95,173.88,7.07906187]
[1729755271058,4.14,173.94,173.91,2.8776]
[1729755271753,7.0173,173.94,173.9,1.10003]
[1729755272056,14.09636187,173.94,173.9,3.97783]
[1729755273960,14.09636187,173.94,173.9,1.10003]
[1729755274162,14.09636187,173.94,173.91,2.8777]
[1729755277761,11.21906187,173.94,173.93,2.8774]
[1729755277963,4.14,173.94,173.93,2.8774]
[1729755281569,4.14,173.94,173.92,2.8775]
[1729755283567,2.8771,173.95,173.92,2.8775]
[1729755283863,4.12,173.94,173.92,2.8775]
[1729755285570,4.12,173.94,173.93,2.8774]
[1729755293266,11.19906187,173.94,173.77,2.86720044]
[1729755293465,7.07906187,173.86,173.78,3.6001]
[1729755293667,7.07906187,173.87,173.81,7.07906187]
[1729755293867,4.12,173.88,173.86,2.8786]
[1729755294162,4.12,173.89,173.86,8.17906187]
[1729755294369,7.07906187,173.91,173.86,8.17906187]
[1729755294370,4.12,173.9,173.86,8.17906187]
[1729755294558,4.12,173.9,173.87,2.8784]
[1729755295259,4.12,173.9,173.87,3.9784]
[1729755295770,4.12,173.9,173.87,2.8784]
[1729755296365,4.12,173.9,173.87,3.9784]
[1729755299575,4.12,173.9,173.87,1.1]
[1729755299762,4.12,173.9,173.88,2.8782]
[1729755301475,4.12,173.9,173.87,1.1]
[1729755301677,4.12,173.91,173.89,7.07906187]
[1729755301878,4.12,173.93,173.89,7.07906187]
[1729755302071,4.12,173.93,173.9,2.8779]
[1729755302267,7.07906187,173.92,173.84,3.6638]
[1729755302578,7.07906187,173.91,173.84,10.74286187]
[1729755302770,7.07906187,173.91,173.87,2.8783]
[1729755303373,7.07906187,173.91,173.87,3.97833]
[1729755303774,7.07906187,173.91,173.87,1.10003]
[1729755303974,7.07906187,173.91,173.88,2.8782]
[1729755304167,7.07906187,173.89,173.88,1.43948694]
[1729755304677,11.19906187,173.89,173.88,1.43950769]
[1729755308475,14.07716187,173.89,173.88,1.43950769]
[1729755309379,14.07716187,173.89,173.85,2.8787]
[1729755309580,7.07906187,173.87,173.86,6.50274878]
[1729755311790,7.07906187,173.87,173.86,5.06315836]
[1729755312085,7.07906187,173.87,173.86,6.50275023]
[1729755312275,7.07906187,173.87,173.86,1.43959187]
[1729755312885,7.07906187,173.87,173.86,6.50605992]
[1729755313786,7.07906187,173.87,173.86,1.43959187]
[1729755314879,9.95746187,173.87,173.86,1.43959187]
[1729755315287,7.07906187,173.87,173.8,6.16201653]
[1729755315582,7.07906187,173.83,173.81,6.50173392]
[1729755315881,7.07906187,173.83,173.82,1.43974739]
[1729755317382,11.19906187,173.84,173.82,1.43974739]
[1729755317581,11.19906187,173.84,173.79,1.10003]
[1729755317781,11.19906187,173.84,173.8,6.50000163]
[1729755317984,11.19906187,173.84,173.81,4.31910069]
[1729755318189,11.19906187,173.84,173.82,1.43990069]
[1729755318385,11.19906187,173.84,173.81,2.8792]
[1729755318690,11.19906187,173.84,173.82,1.43989922]
[1729755318885,11.19906187,173.84,173.81,2.8792]
[1729755319384,11.19906187,173.84,173.82,1.4398997]
[1729755319575,11.19906187,173.84,173.81,2.8792]
[1729755319776,11.19906187,173.84,173.8,1.10003]
[1729755319777,7.07906187,173.83,173.82,1.43989324]
[1729755319977,7.07906187,173.83,173.78,1.10003]
[1729755319978,9.95816187,173.83,173.78,1.10003]
[1729755320177,9.95816187,173.83,173.79,1.44003447]
[1729755320389,9.95816187,173.83,173.8,1.44003447]
[1729755320591,9.95816187,173.83,173.79,2.8796]
[1729755320785,9.95816187,173.83,173.8,1.44003447]
[1729755320988,9.95816187,173.83,173.79,2.8796]
[1729755322179,11.19906187,173.83,173.81,2.8794]
[1729755322380,11.19906187,173.83,173.79,0.30004]
[1729755322584,11.19906187,173.83,173.8,1.43993281]
[1729755322786,11.19906187,173.83,173.81,4.31933281]
[1729755322988,11.19906187,173.83,173.81,2.8794]
[1729755326891,4.12,173.83,173.81,2.8794]
[1729755327093,11.19906187,173.83,173.81,2.8794]
[1729755335607,4.12,173.83,173.82,2.8792]
[1729755335807,4.12,173.84,173.81,1.10003]
[1729755336009,4.12,173.85,173.79,8.17909187]
[1729755336203,4.12,173.85,173.83,2.879]
[1729755336610,7.07906187,173.84,173.83,2.879]
[1729755337511,7.07906187,173.84,173.8,1.10003]
[1729755337808,9.95846187,173.81,173.77,5.04949285]
[1729755338008,7.07906187,173.79,173.78,1.44002879]
[1729755339114,7.07906187,173.79,173.76,2.8801]
[1729755339320,6.9997,173.8,173.77,1.44009122]
[1729755339518,7.07906187,173.78,173.76,2.8801]
[1729755339714,7.07906187,173.78,173.77,1.44009146]
[1729755340218,9.95906187,173.78,173.76,1.44022672]
[1729755340412,9.95906187,173.78,173.73,6.14958285]
[1729755340413,7.07906187,173.77,173.73,6.14958285]
[1729755340615,7.07906187,173.77,173.73,1.10009]
[1729755340816,4.12,173.76,173.74,1.44024508]
[1729755341015,4.12,173.76,173.75,1.44024508]
[1729755342324,4.12,173.76,173.74,3.98049]
[1729755345636,4.12,173.79,173.78,2.8798]
[1729755345926,4.12,173.8,173.78,2.8798]
[1729755346117,11.19906187,173.8,173.78,2.8798]
[1729755346921,11.19906187,173.8,173.77,3.97999]
[1729755348228,11.19906187,173.8,173.78,2.8798]
[1729755354624,11.19906187,173.8,173.76,1.15131]
[1729755354831,7.07906187,173.77,173.75,2.8803]
[1729755355131,11.19906187,173.77,173.75,2.8803]
[1729755355925,14.07916187,173.77,173.73,4.3210351]
[1729755356120,7.07906187,173.74,173.73,3.98076]
[1729755356320,7.07906187,173.74,173.73,5.42111474]
[1729755359733,7.07906187,173.74,173.73,5.42113977]
[1729755360233,7.07906187,173.76,173.73,2.54043977]
[1729755360426,7.07906187,173.76,173.74,4.32087977]
[1729755360630,7.07906187,173.76,173.74,2.8805]
[1729755363339,4.12,173.77,173.74,2.8805]
[1729755363530,7.07906187,173.76,173.74,2.8805]
[1729755365934,7.07906187,173.76,173.74,3.98056]
[1729755370037,7.07906187,173.76,173.74,2.8805]
[1729755371641,4.12,173.77,173.73,1.10006]
[1729755371838,4.12,173.77,173.74,1.44030296]
[1729755372041,4.12,173.79,173.75,8.51936483]
[1729755372237,62.18,173.85,173.8,2.8795]
[1729755372238,7.07906187,173.83,173.8,2.8795]
[1729755372429,62.18,173.85,173.8,7.07906187]
[1729755372630,62.18,173.85,173.81,7.07906187]
[1729755372838,4.12,173.84,173.81,7.07906187]
[1729755373340,4.12,173.84,173.83,2.8789]
[1729755374434,4.12,173.84,173.82,2.8791]
[1729755375033,7.07906187,173.83,173.81,1.10006]
[1729755375236,7.07906187,173.82,173.77,1.2701]
[1729755375431,4.12,173.84,173.78,1.43988951]
[1729755375432,7.07906187,173.8,173.78,1.43988951]
[1729755375646,7.07906187,173.8,173.79,1.43988951]
[1729755375843,11.19906187,173.8,173.79,1.43988951]
[1729755376342,11.19906187,173.8,173.77,2.8799]
[1729755376538,7.07906187,173.79,173.78,1.4400416]
[1729755376735,7.07906187,173.79,173.73,1.15131]
[1729755377045,7.07906187,173.76,173.74,1.44010635]
[1729755377244,7.07906187,173.75,173.7,3.53911]
[1729755377543,7.07906187,173.73,173.71,1.44029842]
[1729755377746,7.07906187,173.73,173.72,4.32119842]
[1729755377943,7.07906187,173.73,173.72,1.44029842]
[1729755379949,7.07906187,173.73,173.66,2.35209]
[1729755380151,7.07906187,173.69,173.68,2.8815]
[1729755380342,7.07906187,173.69,173.66,2.40407]
[1729755380747,7.07906187,173.69,173.66,2.35206]
[1729755381250,7.07906187,173.69,173.67,2.8817]
[1729755381448,7.07906187,173.69,173.67,3.98176]
[1729755382148,7.07906187,173.69,173.68,2.8815]
[1729755383547,11.19906187,173.7,173.67,1.10006]
[1729755383744,11.19906187,173.7,173.69,2.8814]
[1729755384943,11.19906187,173.7,173.68,3.98146]
[1729755389447,11.19906187,173.7,173.68,2.8814]
[1729755389649,7.07906187,173.69,173.68,2.8815]
[1729755391954,7.07906187,173.69,173.68,4.32218358]
[1729755392656,11.19906187,173.7,173.68,4.32218358]
[1729755392858,11.19906187,173.7,173.69,1.44068358]
[1729755393954,11.19906187,173.7,173.66,1.10003]
[1729755394160,7.07906187,173.69,173.67,1.44074928]
[1729755394361,7.07906187,173.69,173.66,2.8818]
[1729755394659,7.07906187,173.67,173.66,2.8818]
[1729755394861,7.07906187,173.67,173.66,4.32274203]
[1729755395160,7.07906187,173.67,173.66,2.8818]
[1729755395461,7.07906187,173.67,173.66,4.32277721]
[1729755396257,7.07906187,173.67,173.66,1.44097721]
[1729755396667,4.12,173.7,173.66,1.44097721]
[1729755396858,7.07906187,173.68,173.66,4.03384]
[1729755397955,7.07906187,173.68,173.66,5.47475989]
[1729755398156,7.07906187,173.67,173.66,2.8817]
[1729755398359,7.07906187,173.67,173.66,4.32261989]
[1729755398564,7.07906187,173.67,173.66,2.8817]
[1729755398752,7.07906187,173.67,173.66,4.32261989]
[1729755398957,7.07906187,173.67,173.66,2.8817]
[1729755399162,7.07906187,173.67,173.66,4.32261989]
[1729755400868,7.07906187,173.67,173.66,2.8817]
[1729755401059,7.07906187,173.67,173.66,4.3226266]
[1729755401257,7.07906187,173.67,173.66,2.8817]
[1729755402870,7.07906187,173.67,173.66,4.32262514]
[1729755403566,7.07906187,173.67,173.66,2.8817]
[1729755405171,7.07906187,173.67,173.66,4.32262664]
[1729755405670,7.07906187,173.68,173.66,4.32262664]
[1729755407967,7.07906187,173.67,173.66,1.44092664]
[1729755408159,7.07906187,173.67,173.62,1.10003]
[1729755408358,4.12,173.66,173.62,7.07906187]
[1729755408569,4.12,173.66,173.63,1.44104531]
[1729755408764,4.12,173.66,173.65,2.882]
[1729755410067,2.881,173.72,173.68,2.8814]
[1729755410269,7.07906187,173.7,173.65,1.44097652]
[1729755410574,7.07906187,173.69,173.65,2.54100652]
[1729755412369,7.07906187,173.69,173.67,2.8816]
[1729755419278,7.07906187,173.68,173.67,2.8816]
[1729755424589,7.07906187,173.68,173.65,3.98186]
[1729755424880,7.07906187,173.66,173.65,2.8819]
[1729755425280,7.07906187,173.66,173.65,4.32290263]
[1729755425482,7.07906187,173.66,173.64,2.8822]
[1729755425787,7.07906187,173.65,173.64,2.8822]
[1729755426173,7.07906187,173.65,173.64,4.32326035]